[Event "Titled Tuesday Blitz December 27 Late 2022"]
[White "Marcolino, Daniel Mattos"]
[Black "White, John S."]
[WhiteFideId "2106841"]
[BlackFideId "2502348"]
[WhiteElo "2006"]
[BlackElo "2235"]
[Result "1/2-1/2"]
[Round "09"]
[TimeControl "180+2"]
[Date "2022.12.27"]
[WhiteClock "0:00:07"]
[BlackClock "0:00:07"]

1. d4 {[%clk 0:01:49]}  Nf6 {[%clk 0:02:57]} 2. Nf3 {[%clk 0:01:46]}  g6 {[%clk 0:02:55]} 3. g3 {[%clk 0:01:42]}  Bg7 {[%clk 0:02:53]} 4. Bg2 {[%clk 0:01:43]}  O-O {[%clk 0:02:52]} 5. O-O {[%clk 0:01:43]}  d6 {[%clk 0:02:50]} 6. b3 {[%clk 0:01:42]}  c5 {[%clk 0:02:48]} 7. Bb2 {[%clk 0:01:42]}  cxd4 {[%clk 0:02:46]} 8. Nxd4 {[%clk 0:01:43]}  a6 {[%clk 0:02:35]} 9. c4 {[%clk 0:01:42]}  Qc7 {[%clk 0:02:30]} 10. Nc3 {[%clk 0:01:41]}  Nc6 {[%clk 0:02:28]} 11. Nxc6 {[%clk 0:01:37]}  bxc6 {[%clk 0:02:27]} 12. Rc1 {[%clk 0:01:38]}  Bb7 {[%clk 0:02:23]} 13. Na4 {[%clk 0:01:33]}  c5 {[%clk 0:02:16]} 14. Bxb7 {[%clk 0:01:26]}  Qxb7 {[%clk 0:02:14]} 15. Bxf6 {[%clk 0:01:26]}  Bxf6 {[%clk 0:02:13]} 16. Nc3 {[%clk 0:01:27]}  Rfd8 {[%clk 0:02:06]} 17. Nd5 {[%clk 0:01:24]}  Bg7 {[%clk 0:02:04]} 18. Qc2 {[%clk 0:01:20]}  e6 {[%clk 0:02:00]} 19. Nf4 {[%clk 0:01:19]}  Rac8 {[%clk 0:01:58]} 20. Rfd1 {[%clk 0:01:17]}  d5 {[%clk 0:01:53]} 21. cxd5 {[%clk 0:01:12]}  exd5 {[%clk 0:01:53]} 22. e3 {[%clk 0:01:03]}  d4 {[%clk 0:01:33]} 23. Qe2 {[%clk 0:00:57]}  dxe3 {[%clk 0:01:27]} 24. fxe3 {[%clk 0:00:36]}  Qb5 {[%clk 0:01:11]} 25. Kf2 {[%clk 0:00:32]}  Rxd1 {[%clk 0:00:58]} 26. Rxd1 {[%clk 0:00:28]}  c4 {[%clk 0:00:55]} 27. bxc4 {[%clk 0:00:21]}  Qxc4 {[%clk 0:00:52]} 28. Qxc4 {[%clk 0:00:21]}  Rxc4 {[%clk 0:00:51]} 29. Rd8+ {[%clk 0:00:21]}  Bf8 {[%clk 0:00:50]} 30. Nd5 {[%clk 0:00:17]}  Kg7 {[%clk 0:00:44]} 31. Nf4 {[%clk 0:00:11]}  Rc2+ {[%clk 0:00:41]} 32. Kf3 {[%clk 0:00:11]}  Rxa2 {[%clk 0:00:37]} 33. h4 {[%clk 0:00:11]}  a5 {[%clk 0:00:32]} 34. Ra8 {[%clk 0:00:10]}  a4 {[%clk 0:00:31]} 35. Nd5 {[%clk 0:00:10]}  Rd2 {[%clk 0:00:23]} 36. Nc3 {[%clk 0:00:06]}  Rd3 {[%clk 0:00:14]} 37. Nxa4 {[%clk 0:00:07]}  Ra3 {[%clk 0:00:10]} 38. Nb6 {[%clk 0:00:07]}  Rxa8 {[%clk 0:00:09]} 39. Nxa8 {[%clk 0:00:08]}  f5 {[%clk 0:00:09]} 40. Nb6 {[%clk 0:00:07]}  Bc5 {[%clk 0:00:08]} 41. Nd5 {[%clk 0:00:07]}  Bd6 {[%clk 0:00:07]} 42. Nf4 {[%clk 0:00:07]}  Bxf4 {[%clk 0:00:07]} 43. exf4 {[%clk 0:00:07]} 1/2-1/2


[Site "https://www.chess.com"]

[Event "Titled Tuesday Blitz December 27 Late 2022"]
[White "Martinez Reyes, Pedro Ramon"]
[Black "TheKnightOfBosnia"]
[WhiteFideId "3901807"]
[WhiteElo "2376"]
[BlackElo "2434"]
[Result "1-0"]
[Round "09"]
[TimeControl "180+2"]
[Date "2022.12.27"]
[WhiteClock "0:00:35"]
[BlackClock "0:00:02"]

1. Nh3 {[%clk 0:03:00]}  Nf6 {[%clk 0:02:57]} 2. g3 {[%clk 0:03:00]}  g6 {[%clk 0:02:56]} 3. f4 {[%clk 0:02:59]}  Bg7 {[%clk 0:02:55]} 4. Bg2 {[%clk 0:03:00]}  O-O {[%clk 0:02:55]} 5. d3 {[%clk 0:03:00]}  Nc6 {[%clk 0:02:55]} 6. O-O {[%clk 0:02:58]}  d5 {[%clk 0:02:55]} 7. c3 {[%clk 0:02:56]}  e5 {[%clk 0:02:55]} 8. Na3 {[%clk 0:02:49]}  a6 {[%clk 0:02:49]} 9. Nc2 {[%clk 0:02:47]}  Be6 {[%clk 0:02:48]} 10. Ng5 {[%clk 0:02:46]}  Bg4 {[%clk 0:02:43]} 11. h3 {[%clk 0:02:45]}  Bd7 {[%clk 0:02:42]} 12. Kh2 {[%clk 0:02:33]}  Qe7 {[%clk 0:02:41]} 13. e4 {[%clk 0:02:27]}  dxe4 {[%clk 0:02:36]} 14. Nxe4 {[%clk 0:02:26]}  Rad8 {[%clk 0:02:31]} 15. Nxf6+ {[%clk 0:02:18]}  Qxf6 {[%clk 0:02:31]} 16. fxe5 {[%clk 0:02:17]}  Qxe5 {[%clk 0:02:31]} 17. Bf4 {[%clk 0:02:17]}  Qa5 {[%clk 0:02:27]} 18. d4 {[%clk 0:02:16]}  Ne7 {[%clk 0:02:18]} 19. Nb4 {[%clk 0:02:01]}  Qb6 {[%clk 0:02:12]} 20. Re1 {[%clk 0:01:53]}  Be6 {[%clk 0:01:55]} 21. Bg5 {[%clk 0:01:25]}  f6 {[%clk 0:01:11]} 22. Qe2 {[%clk 0:01:25]}  fxg5 {[%clk 0:01:01]} 23. Qxe6+ {[%clk 0:01:25]}  Qxe6 {[%clk 0:01:02]} 24. Rxe6 {[%clk 0:01:26]}  Nc8 {[%clk 0:00:44]} 25. Rf1 {[%clk 0:01:21]}  Rxf1 {[%clk 0:00:43]} 26. Bxf1 {[%clk 0:01:22]}  Nd6 {[%clk 0:00:41]} 27. Nd5 {[%clk 0:01:20]}  c6 {[%clk 0:00:34]} 28. Nb6 {[%clk 0:01:18]}  Kf7 {[%clk 0:00:33]} 29. Re2 {[%clk 0:01:04]}  Nf5 {[%clk 0:00:31]} 30. g4 {[%clk 0:00:54]}  Nd6 {[%clk 0:00:29]} 31. Bg2 {[%clk 0:00:49]}  Re8 {[%clk 0:00:27]} 32. Rxe8 {[%clk 0:00:48]}  Kxe8 {[%clk 0:00:26]} 33. Kg3 {[%clk 0:00:45]}  Kd8 {[%clk 0:00:25]} 34. Bf1 {[%clk 0:00:43]}  Ne4+ {[%clk 0:00:21]} 35. Kf3 {[%clk 0:00:41]}  Nd2+ {[%clk 0:00:20]} 36. Ke2 {[%clk 0:00:42]}  Ne4 {[%clk 0:00:20]} 37. Nc4 {[%clk 0:00:38]}  Ke7 {[%clk 0:00:18]} 38. Bg2 {[%clk 0:00:38]}  Nd6 {[%clk 0:00:17]} 39. Ne3 {[%clk 0:00:38]}  h5 {[%clk 0:00:16]} 40. Bf3 {[%clk 0:00:38]}  hxg4 {[%clk 0:00:15]} 41. hxg4 {[%clk 0:00:38]}  Kd7 {[%clk 0:00:14]} 42. Kd3 {[%clk 0:00:38]}  Kc7 {[%clk 0:00:13]} 43. Be4 {[%clk 0:00:39]}  Nxe4 {[%clk 0:00:11]} 44. Kxe4 {[%clk 0:00:39]}  Kd6 {[%clk 0:00:11]} 45. Nc4+ {[%clk 0:00:39]}  Ke6 {[%clk 0:00:11]} 46. Na5 {[%clk 0:00:39]}  c5 {[%clk 0:00:08]} 47. dxc5 {[%clk 0:00:37]}  Kd7 {[%clk 0:00:09]} 48. Kd5 {[%clk 0:00:35]}  Kc7 {[%clk 0:00:08]} 49. c6 {[%clk 0:00:34]}  b6 {[%clk 0:00:04]} 50. Nc4 {[%clk 0:00:34]}  Bf8 {[%clk 0:00:04]} 51. Ne5 {[%clk 0:00:34]}  a5 {[%clk 0:00:03]} 52. Nxg6 {[%clk 0:00:35]}  Bc5 {[%clk 0:00:03]} 53. Ne5 {[%clk 0:00:35]}  Be3 {[%clk 0:00:03]} 54. Nc4 {[%clk 0:00:35]}  Bf2 {[%clk 0:00:03]} 55. a4 {[%clk 0:00:35]}  Bg1 {[%clk 0:00:02]} 56. b4 {[%clk 0:00:35]} 1-0


[Site "https://www.chess.com"]

[Event "Titled Tuesday Blitz December 27 Late 2022"]
[White "Mekhitarian, Krikor Sevag"]
[Black "Marjanovic, Annamaria"]
[WhiteFideId "2107660"]
[BlackFideId "750930"]
[WhiteElo "2537"]
[BlackElo "2273"]
[Result "1-0"]
[Round "09"]
[TimeControl "180+2"]
[Date "2022.12.27"]
[WhiteClock "0:00:06"]
[BlackClock "0:00:06"]

1. e4 {[%clk 0:02:54]}  e5 {[%clk 0:02:58]} 2. Nf3 {[%clk 0:02:52]}  Nc6 {[%clk 0:02:58]} 3. Bb5 {[%clk 0:02:45]}  a6 {[%clk 0:02:57]} 4. Ba4 {[%clk 0:02:43]}  Nf6 {[%clk 0:02:57]} 5. O-O {[%clk 0:02:40]}  Be7 {[%clk 0:02:58]} 6. d3 {[%clk 0:02:39]}  b5 {[%clk 0:02:55]} 7. Bb3 {[%clk 0:02:40]}  d6 {[%clk 0:02:55]} 8. a4 {[%clk 0:02:39]}  Bd7 {[%clk 0:02:55]} 9. c3 {[%clk 0:02:39]}  O-O {[%clk 0:02:53]} 10. Bc2 {[%clk 0:02:39]}  b4 {[%clk 0:02:46]} 11. a5 {[%clk 0:02:32]}  Bg4 {[%clk 0:02:39]} 12. Nbd2 {[%clk 0:02:29]}  Qb8 {[%clk 0:02:30]} 13. h3 {[%clk 0:02:23]}  Bh5 {[%clk 0:02:20]} 14. Re1 {[%clk 0:02:17]}  Bxf3 {[%clk 0:01:59]} 15. Qxf3 {[%clk 0:02:13]}  Nd8 {[%clk 0:01:53]} 16. Nc4 {[%clk 0:02:10]}  Ne6 {[%clk 0:01:51]} 17. g3 {[%clk 0:01:56]}  Re8 {[%clk 0:01:42]} 18. h4 {[%clk 0:01:52]}  Bf8 {[%clk 0:01:37]} 19. Ne3 {[%clk 0:01:49]}  c5 {[%clk 0:01:27]} 20. Nc4 {[%clk 0:01:15]}  Qc7 {[%clk 0:01:06]} 21. Ba4 {[%clk 0:01:05]}  Red8 {[%clk 0:01:03]} 22. Bg5 {[%clk 0:01:03]}  Be7 {[%clk 0:00:48]} 23. Bxf6 {[%clk 0:01:03]}  Bxf6 {[%clk 0:00:48]} 24. Nb6 {[%clk 0:00:59]}  Rdb8 {[%clk 0:00:30]} 25. Nd5 {[%clk 0:00:59]}  Qd8 {[%clk 0:00:30]} 26. Re2 {[%clk 0:00:35]}  bxc3 {[%clk 0:00:20]} 27. bxc3 {[%clk 0:00:35]}  c4 {[%clk 0:00:20]} 28. dxc4 {[%clk 0:00:30]}  Nc5 {[%clk 0:00:21]} 29. Bc6 {[%clk 0:00:23]}  Ra7 {[%clk 0:00:21]} 30. Nb6 {[%clk 0:00:24]}  Rxb6 {[%clk 0:00:17]} 31. axb6 {[%clk 0:00:24]}  Qxb6 {[%clk 0:00:18]} 32. Bd5 {[%clk 0:00:21]}  a5 {[%clk 0:00:15]} 33. Ree1 {[%clk 0:00:20]}  a4 {[%clk 0:00:15]} 34. Reb1 {[%clk 0:00:20]}  Nb3 {[%clk 0:00:15]} 35. Ra2 {[%clk 0:00:19]}  h6 {[%clk 0:00:16]} 36. Kg2 {[%clk 0:00:18]}  Qc5 {[%clk 0:00:15]} 37. h5 {[%clk 0:00:18]}  Qc7 {[%clk 0:00:13]} 38. Qe2 {[%clk 0:00:17]}  Qd7 {[%clk 0:00:12]} 39. Kh2 {[%clk 0:00:16]}  Bg5 {[%clk 0:00:12]} 40. Kg2 {[%clk 0:00:16]}  Kf8 {[%clk 0:00:11]} 41. Qd1 {[%clk 0:00:16]}  Qc7 {[%clk 0:00:09]} 42. Qc2 {[%clk 0:00:15]}  Nc5 {[%clk 0:00:07]} 43. Rb5 {[%clk 0:00:14]}  Nb3 {[%clk 0:00:06]} 44. Qb2 {[%clk 0:00:14]}  Bc1 {[%clk 0:00:05]} 45. Qb1 {[%clk 0:00:13]}  Bg5 {[%clk 0:00:06]} 46. Rb2 {[%clk 0:00:12]}  Bc1 {[%clk 0:00:05]} 47. R2xb3 {[%clk 0:00:11]}  axb3 {[%clk 0:00:06]} 48. Qxc1 {[%clk 0:00:11]}  f5 {[%clk 0:00:05]} 49. Rxb3 {[%clk 0:00:11]}  fxe4 {[%clk 0:00:06]} 50. Qb1 {[%clk 0:00:11]}  e3 {[%clk 0:00:06]} 51. fxe3 {[%clk 0:00:09]}  Qc8 {[%clk 0:00:06]} 52. Rb8 {[%clk 0:00:07]}  Ra2+ {[%clk 0:00:07]} 53. Kg1 {[%clk 0:00:06]}  Ra1 {[%clk 0:00:06]} 54. Rxc8+ {[%clk 0:00:06]}  Ke7 {[%clk 0:00:06]} 55. Qxa1 {[%clk 0:00:06]} 1-0


[Site "https://www.chess.com"]

[Event "Titled Tuesday Blitz December 27 Late 2022"]
[White "Mushini Ajay"]
[Black "Garcia, Gabriel Gonzaga"]
[WhiteFideId "35066188"]
[BlackFideId "2138956"]
[WhiteElo "2310"]
[BlackElo "2091"]
[Result "0-1"]
[Round "09"]
[TimeControl "180+2"]
[Date "2022.12.27"]
[WhiteClock "0:00:02"]
[BlackClock "0:00:06"]

1. e4 {[%clk 0:02:39]}  c6 {[%clk 0:02:54]} 2. d4 {[%clk 0:02:36]}  d5 {[%clk 0:02:55]} 3. e5 {[%clk 0:02:36]}  Bf5 {[%clk 0:02:04]} 4. Nf3 {[%clk 0:02:31]}  e6 {[%clk 0:02:04]} 5. Be2 {[%clk 0:02:30]}  Ne7 {[%clk 0:02:05]} 6. O-O {[%clk 0:02:29]}  c5 {[%clk 0:02:05]} 7. c4 {[%clk 0:02:25]}  Nbc6 {[%clk 0:02:04]} 8. Nc3 {[%clk 0:02:23]}  cxd4 {[%clk 0:02:03]} 9. Nxd4 {[%clk 0:02:21]}  Nxd4 {[%clk 0:02:04]} 10. Qxd4 {[%clk 0:02:18]}  Nc6 {[%clk 0:02:05]} 11. Qf4 {[%clk 0:02:14]}  dxc4 {[%clk 0:02:05]} 12. Rd1 {[%clk 0:01:55]}  Qa5 {[%clk 0:02:05]} 13. Bxc4 {[%clk 0:01:50]}  Bb4 {[%clk 0:02:04]} 14. Nb5 {[%clk 0:01:15]}  O-O {[%clk 0:01:59]} 15. a3 {[%clk 0:01:06]}  a6 {[%clk 0:01:56]} 16. Nd6 {[%clk 0:01:01]}  Qxe5 {[%clk 0:01:26]} 17. axb4 {[%clk 0:00:51]}  Qxf4 {[%clk 0:01:23]} 18. Bxf4 {[%clk 0:00:48]}  Nxb4 {[%clk 0:01:23]} 19. Nxf5 {[%clk 0:00:46]}  exf5 {[%clk 0:01:24]} 20. Bd6 {[%clk 0:00:44]}  Rfc8 {[%clk 0:01:22]} 21. Bxf7+ {[%clk 0:00:38]}  Kxf7 {[%clk 0:01:23]} 22. Bxb4 {[%clk 0:00:38]}  Rc7 {[%clk 0:01:24]} 23. g3 {[%clk 0:00:35]}  Rac8 {[%clk 0:01:22]} 24. Bc3 {[%clk 0:00:30]}  Re7 {[%clk 0:01:16]} 25. Rd5 {[%clk 0:00:26]}  g6 {[%clk 0:01:14]} 26. Kg2 {[%clk 0:00:25]}  Rc4 {[%clk 0:01:10]} 27. h4 {[%clk 0:00:25]}  f4 {[%clk 0:01:09]} 28. Rad1 {[%clk 0:00:21]}  fxg3 {[%clk 0:01:08]} 29. Kxg3 {[%clk 0:00:18]}  h5 {[%clk 0:01:02]} 30. Rd6 {[%clk 0:00:18]}  Rg4+ {[%clk 0:01:01]} 31. Kh3 {[%clk 0:00:18]}  Rf4 {[%clk 0:00:56]} 32. Bd4 {[%clk 0:00:16]}  Re6 {[%clk 0:00:25]} 33. Rxe6 {[%clk 0:00:16]}  Kxe6 {[%clk 0:00:26]} 34. Be3 {[%clk 0:00:16]}  Rb4 {[%clk 0:00:26]} 35. Rd2 {[%clk 0:00:14]}  a5 {[%clk 0:00:24]} 36. Bd4 {[%clk 0:00:13]}  a4 {[%clk 0:00:22]} 37. Bc3 {[%clk 0:00:13]}  Rf4 {[%clk 0:00:22]} 38. Kg3 {[%clk 0:00:13]}  Rg4+ {[%clk 0:00:23]} 39. Kh3 {[%clk 0:00:13]}  Rf4 {[%clk 0:00:23]} 40. Re2+ {[%clk 0:00:13]}  Kd5 {[%clk 0:00:23]} 41. Re5+ {[%clk 0:00:12]}  Kc4 {[%clk 0:00:23]} 42. Re6 {[%clk 0:00:13]}  Rxf2 {[%clk 0:00:21]} 43. Rxg6 {[%clk 0:00:12]}  a3 {[%clk 0:00:21]} 44. Be1 {[%clk 0:00:10]}  axb2 {[%clk 0:00:21]} 45. Bxf2 {[%clk 0:00:09]}  b1=Q {[%clk 0:00:21]} 46. Rb6 {[%clk 0:00:10]}  Qd3+ {[%clk 0:00:20]} 47. Bg3 {[%clk 0:00:10]}  Qf5+ {[%clk 0:00:19]} 48. Kg2 {[%clk 0:00:10]}  Qe4+ {[%clk 0:00:19]} 49. Kh3 {[%clk 0:00:10]}  Kc5 {[%clk 0:00:19]} 50. Bf2+ {[%clk 0:00:08]}  Kd5 {[%clk 0:00:19]} 51. Rb5+ {[%clk 0:00:08]}  Kc6 {[%clk 0:00:19]} 52. Rc5+ {[%clk 0:00:08]}  Kd6 {[%clk 0:00:19]} 53. Rg5 {[%clk 0:00:07]}  b5 {[%clk 0:00:15]} 54. Bg3+ {[%clk 0:00:07]}  Kc6 {[%clk 0:00:14]} 55. Rxh5 {[%clk 0:00:06]}  Qh1+ {[%clk 0:00:14]} 56. Kg4 {[%clk 0:00:07]}  Qd1+ {[%clk 0:00:14]} 57. Kg5 {[%clk 0:00:07]}  b4 {[%clk 0:00:12]} 58. Be5 {[%clk 0:00:06]}  Qd2+ {[%clk 0:00:10]} 59. Kg6 {[%clk 0:00:06]}  Qg2+ {[%clk 0:00:09]} 60. Rg5 {[%clk 0:00:06]}  Qc2+ {[%clk 0:00:09]} 61. Kh6 {[%clk 0:00:06]}  b3 {[%clk 0:00:08]} 62. Bf6 {[%clk 0:00:06]}  Kd7 {[%clk 0:00:08]} 63. h5 {[%clk 0:00:06]}  Ke6 {[%clk 0:00:08]} 64. Bg7 {[%clk 0:00:05]}  Kf7 {[%clk 0:00:08]} 65. Be5 {[%clk 0:00:05]}  b2 {[%clk 0:00:07]} 66. Bxb2 {[%clk 0:00:05]}  Qxb2 {[%clk 0:00:08]} 67. Rf5+ {[%clk 0:00:04]}  Kg8 {[%clk 0:00:08]} 68. Kg6 {[%clk 0:00:05]}  Qb6+ {[%clk 0:00:07]} 69. Rf6 {[%clk 0:00:05]}  Qg1+ {[%clk 0:00:08]} 70. Kf5 {[%clk 0:00:05]}  Qf1+ {[%clk 0:00:06]} 71. Kg5 {[%clk 0:00:05]}  Qg2+ {[%clk 0:00:06]} 72. Kf5 {[%clk 0:00:05]}  Qf3+ {[%clk 0:00:06]} 73. Kg5 {[%clk 0:00:05]}  Qg3+ {[%clk 0:00:07]} 74. Kf5 {[%clk 0:00:06]}  Qh4 {[%clk 0:00:07]} 75. Rg6+ {[%clk 0:00:06]}  Kf7 {[%clk 0:00:07]} 76. Rg5 {[%clk 0:00:05]}  Qh3+ {[%clk 0:00:06]} 77. Kf4 {[%clk 0:00:05]}  Kf6 {[%clk 0:00:05]} 78. Rg6+ {[%clk 0:00:05]}  Kf7 {[%clk 0:00:06]} 79. Kg5 {[%clk 0:00:05]}  Qg3+ {[%clk 0:00:06]} 80. Kh6 {[%clk 0:00:06]}  Qf4+ {[%clk 0:00:07]} 81. Kh7 {[%clk 0:00:05]}  Qf5 {[%clk 0:00:07]} 82. Kh6 {[%clk 0:00:05]}  Qe4 {[%clk 0:00:07]} 83. Rg7+ {[%clk 0:00:05]}  Kf8 {[%clk 0:00:07]} 84. Rg6 {[%clk 0:00:04]}  Qf4+ {[%clk 0:00:08]} 85. Kh7 {[%clk 0:00:03]}  Qf5 {[%clk 0:00:07]} 86. Kh6 {[%clk 0:00:03]}  Kf7 {[%clk 0:00:07]} 87. Rg7+ {[%clk 0:00:03]}  Kf8 {[%clk 0:00:07]} 88. Rg6 {[%clk 0:00:04]}  Qf7 {[%clk 0:00:07]} 89. Kg5 {[%clk 0:00:04]}  Qe7+ {[%clk 0:00:07]} 90. Rf6+ {[%clk 0:00:04]}  Kg7 {[%clk 0:00:06]} 91. h6+ {[%clk 0:00:05]}  Kh7 {[%clk 0:00:07]} 92. Kf5 {[%clk 0:00:05]}  Qe3 {[%clk 0:00:06]} 93. Re6 {[%clk 0:00:02]}  Qh3+ {[%clk 0:00:06]} 94. Ke5 {[%clk 0:00:03]}  Qe3+ {[%clk 0:00:05]} 95. Kd6 {[%clk 0:00:04]}  Qd4+ {[%clk 0:00:05]} 96. Ke7 {[%clk 0:00:04]}  Kg8 {[%clk 0:00:05]} 97. Rg6+ {[%clk 0:00:04]}  Kh7 {[%clk 0:00:05]} 98. Re6 {[%clk 0:00:04]}  Qd5 {[%clk 0:00:05]} 99. Kf6 {[%clk 0:00:05]}  Kxh6 {[%clk 0:00:05]} 100. Kf7+ {[%clk 0:00:05]}  Kh7 {[%clk 0:00:06]} 101. Kf6 {[%clk 0:00:02]}  Qf3+ {[%clk 0:00:05]} 102. Ke7 {[%clk 0:00:02]}  Kg7 {[%clk 0:00:06]} 103. Re5 {[%clk 0:00:02]}  Qf4 {[%clk 0:00:06]} 104. Ke6 {[%clk 0:00:01]}  Kg6 {[%clk 0:00:05]} 105. Kd5 {[%clk 0:00:01]}  Kf6 {[%clk 0:00:05]} 106. Re6+ {[%clk 0:00:02]}  Kf7 {[%clk 0:00:06]} 0-1


[Site "https://www.chess.com"]

[Event "Titled Tuesday Blitz December 27 Late 2022"]
[White "Pinheiro, Iung Alicio de O."]
[Black "Foisor, Sabina-Francesca"]
[WhiteFideId "2104350"]
[BlackFideId "1212915"]
[WhiteElo "2306"]
[BlackElo "2185"]
[Result "1-0"]
[Round "09"]
[TimeControl "180+2"]
[Date "2022.12.27"]
[WhiteClock "0:00:18"]
[BlackClock "0:00:02"]

1. e4 {[%clk 0:02:29]}  c6 {[%clk 0:02:59]} 2. Nc3 {[%clk 0:02:28]}  g6 {[%clk 0:02:58]} 3. Nf3 {[%clk 0:02:29]}  Bg7 {[%clk 0:02:58]} 4. d4 {[%clk 0:02:29]}  d5 {[%clk 0:02:59]} 5. h3 {[%clk 0:02:29]}  Nf6 {[%clk 0:02:58]} 6. Bd3 {[%clk 0:02:28]}  dxe4 {[%clk 0:02:54]} 7. Nxe4 {[%clk 0:02:29]}  Bf5 {[%clk 0:02:53]} 8. Nxf6+ {[%clk 0:02:02]}  Bxf6 {[%clk 0:02:53]} 9. Bh6 {[%clk 0:01:42]}  Bxd3 {[%clk 0:02:36]} 10. Qxd3 {[%clk 0:01:40]}  Qa5+ {[%clk 0:02:32]} 11. c3 {[%clk 0:01:40]}  Qa6 {[%clk 0:02:25]} 12. c4 {[%clk 0:01:21]}  Qa5+ {[%clk 0:02:10]} 13. Nd2 {[%clk 0:01:01]}  Nd7 {[%clk 0:01:51]} 14. O-O {[%clk 0:00:59]}  Qh5 {[%clk 0:01:44]} 15. Bf4 {[%clk 0:00:45]}  O-O {[%clk 0:01:37]} 16. Nf3 {[%clk 0:00:45]}  Qf5 {[%clk 0:01:21]} 17. Qe3 {[%clk 0:00:44]}  Rfe8 {[%clk 0:01:08]} 18. Rfe1 {[%clk 0:00:44]}  Qc2 {[%clk 0:01:04]} 19. b3 {[%clk 0:00:42]}  e6 {[%clk 0:00:43]} 20. Re2 {[%clk 0:00:41]}  Qf5 {[%clk 0:00:42]} 21. Rd1 {[%clk 0:00:31]}  Qa5 {[%clk 0:00:33]} 22. Be5 {[%clk 0:00:26]}  Bg7 {[%clk 0:00:23]} 23. h4 {[%clk 0:00:23]}  f6 {[%clk 0:00:22]} 24. Bg3 {[%clk 0:00:22]}  e5 {[%clk 0:00:22]} 25. dxe5 {[%clk 0:00:22]}  Nxe5 {[%clk 0:00:23]} 26. Bxe5 {[%clk 0:00:20]}  fxe5 {[%clk 0:00:24]} 27. Ng5 {[%clk 0:00:20]}  Qb6 {[%clk 0:00:19]} 28. Qe4 {[%clk 0:00:19]}  Re7 {[%clk 0:00:16]} 29. h5 {[%clk 0:00:19]}  Rf8 {[%clk 0:00:14]} 30. hxg6 {[%clk 0:00:18]}  h6 {[%clk 0:00:14]} 31. Nf7 {[%clk 0:00:18]}  Qc7 {[%clk 0:00:11]} 32. Rd3 {[%clk 0:00:17]}  Re6 {[%clk 0:00:11]} 33. Rg3 {[%clk 0:00:16]}  Rf6 {[%clk 0:00:11]} 34. Qh4 {[%clk 0:00:16]}  Rf4 {[%clk 0:00:10]} 35. Qh5 {[%clk 0:00:15]}  R8xf7 {[%clk 0:00:09]} 36. gxf7+ {[%clk 0:00:15]}  Rxf7 {[%clk 0:00:10]} 37. Qxh6 {[%clk 0:00:16]}  Kf8 {[%clk 0:00:09]} 38. Rxg7 {[%clk 0:00:15]}  Rxg7 {[%clk 0:00:09]} 39. Qh8+ {[%clk 0:00:16]}  Kf7 {[%clk 0:00:09]} 40. Qh5+ {[%clk 0:00:16]}  Kg8 {[%clk 0:00:09]} 41. Qxe5 {[%clk 0:00:16]}  Qxe5 {[%clk 0:00:08]} 42. Rxe5 {[%clk 0:00:17]}  Rd7 {[%clk 0:00:09]} 43. Re8+ {[%clk 0:00:17]}  Kf7 {[%clk 0:00:09]} 44. Re2 {[%clk 0:00:18]}  b5 {[%clk 0:00:09]} 45. cxb5 {[%clk 0:00:17]}  cxb5 {[%clk 0:00:10]} 46. Re5 {[%clk 0:00:17]}  a6 {[%clk 0:00:10]} 47. a4 {[%clk 0:00:18]}  b4 {[%clk 0:00:09]} 48. Ra5 {[%clk 0:00:18]}  Rd3 {[%clk 0:00:09]} 49. Rxa6 {[%clk 0:00:18]}  Rxb3 {[%clk 0:00:10]} 50. a5 {[%clk 0:00:18]}  Rb1+ {[%clk 0:00:09]} 51. Kh2 {[%clk 0:00:18]}  b3 {[%clk 0:00:10]} 52. Rb6 {[%clk 0:00:18]}  Rb2 {[%clk 0:00:08]} 53. Kg3 {[%clk 0:00:17]}  Ke7 {[%clk 0:00:08]} 54. a6 {[%clk 0:00:17]}  Ra2 {[%clk 0:00:08]} 55. Rxb3 {[%clk 0:00:17]}  Rxa6 {[%clk 0:00:08]} 56. Rf3 {[%clk 0:00:18]}  Ra8 {[%clk 0:00:07]} 57. Kh2 {[%clk 0:00:17]}  Rh8+ {[%clk 0:00:07]} 58. Kg1 {[%clk 0:00:17]}  Ke6 {[%clk 0:00:07]} 59. g3 {[%clk 0:00:16]}  Rg8 {[%clk 0:00:07]} 60. Rf4 {[%clk 0:00:16]}  Ke5 {[%clk 0:00:07]} 61. Kg2 {[%clk 0:00:17]}  Rh8 {[%clk 0:00:07]} 62. f3 {[%clk 0:00:17]}  Rh7 {[%clk 0:00:07]} 63. Rf8 {[%clk 0:00:16]}  Ke6 {[%clk 0:00:07]} 64. g4 {[%clk 0:00:17]}  Ke7 {[%clk 0:00:08]} 65. Rf5 {[%clk 0:00:17]}  Rh8 {[%clk 0:00:08]} 66. Kg3 {[%clk 0:00:17]}  Ra8 {[%clk 0:00:08]} 67. g5 {[%clk 0:00:18]}  Ra1 {[%clk 0:00:07]} 68. Rf6 {[%clk 0:00:16]}  Rg1+ {[%clk 0:00:06]} 69. Kh4 {[%clk 0:00:17]}  Rh1+ {[%clk 0:00:05]} 70. Kg4 {[%clk 0:00:17]}  Ke8 {[%clk 0:00:06]} 71. f4 {[%clk 0:00:17]}  Rh2 {[%clk 0:00:06]} 72. Kf5 {[%clk 0:00:17]}  Ke7 {[%clk 0:00:04]} 73. Kg6 {[%clk 0:00:17]}  Rf2 {[%clk 0:00:03]} 74. f5 {[%clk 0:00:18]}  Ke8 {[%clk 0:00:03]} 75. Ra6 {[%clk 0:00:17]}  Rg2 {[%clk 0:00:02]} 76. f6 {[%clk 0:00:18]}  Rf2 {[%clk 0:00:02]} 77. Kg7 {[%clk 0:00:17]}  Rf5 {[%clk 0:00:01]} 78. g6 {[%clk 0:00:17]}  Kd8 {[%clk 0:00:02]} 79. f7 {[%clk 0:00:18]}  Ke7 {[%clk 0:00:02]} 80. Ra7+ {[%clk 0:00:17]}  Ke6 {[%clk 0:00:03]} 81. f8=Q {[%clk 0:00:17]}  Rxf8 {[%clk 0:00:02]} 82. Kxf8 {[%clk 0:00:18]} 1-0


[Site "https://www.chess.com"]

[Event "Titled Tuesday Blitz December 27 Late 2022"]
[White "Poliakova, Varvara"]
[Black "Quinones Garcia, Santiago"]
[WhiteFideId "13518313"]
[BlackFideId "4408497"]
[WhiteElo "2010"]
[BlackElo "2248"]
[Result "1-0"]
[Round "09"]
[TimeControl "180+2"]
[Date "2022.12.27"]
[WhiteClock "0:01:54"]
[BlackClock "0:01:26"]

1. e4 {[%clk 0:02:52]}  e5 {[%clk 0:02:59]} 2. Nf3 {[%clk 0:02:51]}  Nc6 {[%clk 0:03:00]} 3. d4 {[%clk 0:02:49]}  exd4 {[%clk 0:03:00]} 4. c3 {[%clk 0:02:48]}  Nf6 {[%clk 0:02:59]} 5. e5 {[%clk 0:02:47]}  Ne4 {[%clk 0:02:59]} 6. Qe2 {[%clk 0:02:44]}  Nc5 {[%clk 0:02:56]} 7. cxd4 {[%clk 0:02:42]}  Na6 {[%clk 0:02:56]} 8. d5 {[%clk 0:02:39]}  Ncb8 {[%clk 0:02:54]} 9. Nc3 {[%clk 0:02:32]}  Be7 {[%clk 0:02:53]} 10. d6 {[%clk 0:02:30]}  O-O {[%clk 0:02:27]} 11. dxe7 {[%clk 0:02:29]}  Qxe7 {[%clk 0:02:28]} 12. Bg5 {[%clk 0:02:29]}  Qb4 {[%clk 0:02:27]} 13. Qe4 {[%clk 0:02:27]}  Qxb2 {[%clk 0:02:25]} 14. Rc1 {[%clk 0:02:18]}  Nc6 {[%clk 0:02:24]} 15. Bd3 {[%clk 0:02:18]}  g6 {[%clk 0:02:24]} 16. O-O {[%clk 0:02:17]}  Ncb4 {[%clk 0:02:19]} 17. Bb1 {[%clk 0:02:15]}  d5 {[%clk 0:02:14]} 18. Qh4 {[%clk 0:02:13]}  h5 {[%clk 0:02:07]} 19. Bf6 {[%clk 0:02:12]}  Bg4 {[%clk 0:01:58]} 20. Qg5 {[%clk 0:02:05]}  Kh7 {[%clk 0:01:58]} 21. e6 {[%clk 0:01:56]}  Bxf3 {[%clk 0:01:26]} 22. gxf3 {[%clk 0:01:54]} 1-0


[Site "https://www.chess.com"]